[Event "Late-Titled-Tuesday-Blitz-July-09-2024"]
[Site "Chess.com"]
[Date "2024.07.09"]
[Round "6"]
[White "tusplingher"]
[Black "rasmussvane"]
[Result "0-1"]
[WhiteElo "2677"]
[BlackElo "2917"]
[TimeControl "180+1"]
[EndTime "15:04:53 PDT"]
[Termination "rasmussvane won by resignation"]

1. e4 {[%clk 0:03:00.9]} 1... c6 {[%clk 0:02:53.1]} 2. Nf3 {[%clk 0:02:59.5]}
2... d5 {[%clk 0:02:54]} 3. d3 {[%clk 0:02:59.5]} 3... Bg4 {[%clk 0:02:46.3]} 4.
h3 {[%clk 0:02:57.4]} 4... Bxf3 {[%clk 0:02:46.6]} 5. Qxf3 {[%clk 0:02:56.4]}
5... e6 {[%clk 0:02:47]} 6. g3 {[%clk 0:02:55.8]} 6... Nd7 {[%clk 0:02:46.6]} 7.
Bg2 {[%clk 0:02:55.4]} 7... Bd6 {[%clk 0:02:45.4]} 8. O-O {[%clk 0:02:54.6]}
8... h5 {[%clk 0:02:43.1]} 9. Bf4 {[%clk 0:02:50.1]} 9... Qc7 {[%clk 0:02:39.8]}
10. Bxd6 {[%clk 0:02:49.2]} 10... Qxd6 {[%clk 0:02:40.7]} 11. Re1 {[%clk
0:02:48.6]} 11... h4 {[%clk 0:02:39.3]} 12. exd5 {[%clk 0:02:44.3]} 12... cxd5
{[%clk 0:02:32.5]} 13. Qxd5 {[%clk 0:02:30.1]} 13... Qxd5 {[%clk 0:02:31.5]} 14.
Bxd5 {[%clk 0:02:30]} 14... hxg3 {[%clk 0:02:31.8]} 15. fxg3 {[%clk 0:02:25.4]}
15... Rxh3 {[%clk 0:02:31.1]} 16. Kg2 {[%clk 0:02:22.4]} 16... Rh5 {[%clk
0:02:29.5]} 17. Bxb7 {[%clk 0:02:19.9]} 17... Rb8 {[%clk 0:02:29.7]} 18. Bf3
{[%clk 0:02:20.3]} 18... Rc5 {[%clk 0:02:25.1]} 19. c4 {[%clk 0:01:56.8]} 19...
Rxb2+ {[%clk 0:02:23]} 20. Re2 {[%clk 0:01:56.3]} 20... Rxe2+ {[%clk 0:02:12.2]}
21. Bxe2 {[%clk 0:01:57.2]} 21... Ne7 {[%clk 0:02:10.1]} 22. Nc3 {[%clk
0:01:52.4]} 22... Nc6 {[%clk 0:02:04.3]} 23. Ne4 {[%clk 0:01:45.5]} 23... Ra5
{[%clk 0:02:02.4]} 24. a3 {[%clk 0:01:18.3]} 24... f5 {[%clk 0:02:01]} 25. Ng5
{[%clk 0:01:12.4]} 25... Nc5 {[%clk 0:01:57.4]} 26. Nf3 {[%clk 0:01:05.9]} 26...
Nb3 {[%clk 0:01:51.4]} 27. Ra2 {[%clk 0:01:04.6]} 27... Kd7 {[%clk 0:01:48.3]}
28. Kf2 {[%clk 0:01:02]} 28... e5 {[%clk 0:01:29.7]} 29. Rb2 {[%clk 0:00:55.2]}
29... Rxa3 {[%clk 0:01:25.4]} 30. Bd1 {[%clk 0:00:55]} 30... Nc5 {[%clk
0:01:22]} 31. Bc2 {[%clk 0:00:47.5]} 31... Rxd3 {[%clk 0:00:48.4]} 32. Ke2
{[%clk 0:00:37.1]} 32... Rc3 {[%clk 0:00:35.7]} 33. Bxf5+ {[%clk 0:00:36.6]}
33... Kc7 {[%clk 0:00:32.1]} 34. Rc2 {[%clk 0:00:31.9]} 34... Rxf3 {[%clk
0:00:24.9]} 35. Kxf3 {[%clk 0:00:29.2]} 35... Nd4+ {[%clk 0:00:25.3]} 36. Kg4
{[%clk 0:00:25.6]} 36... Nxc2 {[%clk 0:00:25.6]} 37. Bxc2 {[%clk 0:00:25.8]}
37... a5 {[%clk 0:00:26.1]} 38. Kf5 {[%clk 0:00:22.2]} 38... Kd6 {[%clk
0:00:24.2]} 39. Kg6 {[%clk 0:00:21.7]} 39... a4 {[%clk 0:00:22]} 40. Kxg7 {[%clk
0:00:21.4]} 40... a3 {[%clk 0:00:22.1]} 41. Bb1 {[%clk 0:00:20.9]} 41... e4
{[%clk 0:00:22.4]} 42. g4 {[%clk 0:00:20.7]} 42... e3 {[%clk 0:00:22.9]} 0-1

[Event "Late-Titled-Tuesday-Blitz-July-09-2024"]
[Site "Chess.com"]
[Date "2024.07.09"]
[Round "6"]
[White "IngOscarArdila"]
[Black "GAO"]
[Result "0-1"]
[WhiteElo "2296"]
[BlackElo "2436"]
[TimeControl "180+1"]
[EndTime "15:04:53 PDT"]
[Termination "GAO won on time"]

1. d4 {[%clk 0:02:59.7]} 1... Nf6 {[%clk 0:02:59.5]} 2. c4 {[%clk 0:02:59.7]}
2... e6 {[%clk 0:02:59.8]} 3. Nc3 {[%clk 0:02:59.8]} 3... Bb4 {[%clk 0:02:58.9]}
4. Qc2 {[%clk 0:02:59.9]} 4... O-O {[%clk 0:02:56.6]} 5. Bg5 {[%clk 0:03:00]}
5... d5 {[%clk 0:02:52.7]} 6. e3 {[%clk 0:02:59.5]} 6... b6 {[%clk 0:02:51]} 7.
cxd5 {[%clk 0:02:54.5]} 7... exd5 {[%clk 0:02:50.5]} 8. Bd3 {[%clk 0:02:53.9]}
8... h6 {[%clk 0:02:47.6]} 9. Bh4 {[%clk 0:02:53.1]} 9... c5 {[%clk 0:02:47.3]}
10. Nf3 {[%clk 0:02:51.2]} 10... Nc6 {[%clk 0:02:43.3]} 11. a3 {[%clk
0:02:48.9]} 11... Bxc3+ {[%clk 0:02:41.8]} 12. bxc3 {[%clk 0:02:48.6]} 12... Bg4
{[%clk 0:02:38.5]} 13. O-O {[%clk 0:02:44.4]} 13... c4 {[%clk 0:02:31]} 14. Be2
{[%clk 0:02:31.9]} 14... Bh5 {[%clk 0:02:30.9]} 15. Ne5 {[%clk 0:02:29.9]} 15...
Bxe2 {[%clk 0:02:25.4]} 16. Qxe2 {[%clk 0:02:10.2]} 16... g5 {[%clk 0:02:22.9]}
17. Nxc6 {[%clk 0:02:07.3]} 17... Qd6 {[%clk 0:02:21.8]} 18. Bg3 {[%clk
0:02:04.8]} 18... Qxc6 {[%clk 0:02:21.3]} 19. f4 {[%clk 0:01:55.7]} 19... Ne4
{[%clk 0:02:17.2]} 20. fxg5 {[%clk 0:01:53.3]} 20... hxg5 {[%clk 0:02:18.1]} 21.
Qh5 {[%clk 0:01:50.6]} 21... Kg7 {[%clk 0:02:07.6]} 22. Be5+ {[%clk 0:01:49.6]}
22... f6 {[%clk 0:02:07.4]} 23. Bg3 {[%clk 0:01:30.5]} 23... Nxc3 {[%clk
0:01:57]} 24. h4 {[%clk 0:01:22.8]} 24... Rh8 {[%clk 0:01:53.5]} 25. Qg4 {[%clk
0:01:19.1]} 25... Qc8 {[%clk 0:01:30]} 26. Qxc8 {[%clk 0:00:55.9]} 26... Rhxc8
{[%clk 0:01:26.4]} 27. hxg5 {[%clk 0:00:56.2]} 27... Ne2+ {[%clk 0:01:12.7]} 28.
Kf2 {[%clk 0:00:55.2]} 28... Nxg3 {[%clk 0:01:13]} 29. gxf6+ {[%clk 0:00:53.2]}
29... Kxf6 {[%clk 0:01:13.9]} 30. Kxg3+ {[%clk 0:00:53.4]} 30... Ke6 {[%clk
0:01:14.5]} 31. Rf4 {[%clk 0:00:49.5]} 31... Rg8+ {[%clk 0:01:13]} 32. Kf3
{[%clk 0:00:49.6]} 32... Raf8 {[%clk 0:01:13.5]} 33. g4 {[%clk 0:00:35.9]} 33...
b5 {[%clk 0:01:06.5]} 34. Rb1 {[%clk 0:00:33.4]} 34... Rxf4+ {[%clk 0:01:02.3]}
35. exf4 {[%clk 0:00:33.6]} 35... Rb8 {[%clk 0:01:02.6]} 36. f5+ {[%clk
0:00:30.6]} 36... Kd6 {[%clk 0:01:02]} 37. Kf4 {[%clk 0:00:29]} 37... a5 {[%clk
0:01:02.6]} 38. g5 {[%clk 0:00:28.7]} 38... b4 {[%clk 0:01:03.3]} 39. axb4
{[%clk 0:00:28.5]} 39... axb4 {[%clk 0:01:04.2]} 40. f6 {[%clk 0:00:26.2]} 40...
c3 {[%clk 0:01:04.4]} 41. Ke3 {[%clk 0:00:20.4]} 41... b3 {[%clk 0:01:02]} 42.
Kd3 {[%clk 0:00:20.4]} 42... c2 {[%clk 0:01:01.7]} 43. Rf1 {[%clk 0:00:17.8]}
43... Rc8 {[%clk 0:00:56.4]} 44. f7 {[%clk 0:00:18.1]} 44... Ke7 {[%clk
0:00:54.7]} 45. g6 {[%clk 0:00:17.8]} 45... b2 {[%clk 0:00:49.1]} 46. g7 {[%clk
0:00:05.3]} 46... Rc3+ {[%clk 0:00:48.4]} 47. Ke2 {[%clk 0:00:04.1]} 47... Re3+
{[%clk 0:00:45.3]} 0-1

[Event "Late-Titled-Tuesday-Blitz-July-09-2024"]
[Site "Chess.com"]
[Date "2024.07.09"]
[Round "6"]
[White "TC2304"]
[Black "AlleyOoper"]
[Result "0-1"]
[WhiteElo "2356"]
[BlackElo "2559"]
[TimeControl "180+1"]
[EndTime "15:04:55 PDT"]
[Termination "AlleyOoper won by resignation"]

1. d4 {[%clk 0:03:00.9]} 1... Nf6 {[%clk 0:02:59.5]} 2. Nf3 {[%clk 0:03:01.3]}
2... c5 {[%clk 0:03:00]} 3. d5 {[%clk 0:03:01.1]} 3... g6 {[%clk 0:02:59.7]} 4.
Nc3 {[%clk 0:02:56.6]} 4... Bg7 {[%clk 0:03:00.1]} 5. e4 {[%clk 0:02:57.3]} 5...
d6 {[%clk 0:03:00.5]} 6. Bb5+ {[%clk 0:02:57]} 6... Bd7 {[%clk 0:03:00.3]} 7. a4
{[%clk 0:02:57.7]} 7... O-O {[%clk 0:02:59.9]} 8. O-O {[%clk 0:02:57.6]} 8...
Bg4 {[%clk 0:03:00.4]} 9. h3 {[%clk 0:02:54]} 9... Bxf3 {[%clk 0:02:59.6]} 10.
Qxf3 {[%clk 0:02:54.8]} 10... Na6 {[%clk 0:02:58.1]} 11. Re1 {[%clk 0:02:50.1]}
11... Nb4 {[%clk 0:02:57.8]} 12. Qd1 {[%clk 0:02:43.8]} 12... Nd7 {[%clk
0:02:50]} 13. Be3 {[%clk 0:02:36.5]} 13... a6 {[%clk 0:02:34.2]} 14. Bf1 {[%clk
0:02:34.2]} 14... Rc8 {[%clk 0:02:34.4]} 15. Qd2 {[%clk 0:02:33.2]} 15... Re8
{[%clk 0:02:29.4]} 16. Rad1 {[%clk 0:02:12]} 16... Nf6 {[%clk 0:02:24.2]} 17.
Bc4 {[%clk 0:01:46.6]} 17... Qa5 {[%clk 0:02:22.9]} 18. b3 {[%clk 0:01:44.2]}
18... b5 {[%clk 0:02:18.9]} 19. axb5 {[%clk 0:01:43.7]} 19... axb5 {[%clk
0:02:18.7]} 20. Bxb5 {[%clk 0:01:37.1]} 20... Nxe4 {[%clk 0:02:17.4]} 21. Nxe4
{[%clk 0:01:38]} 21... Qxb5 {[%clk 0:02:17.2]} 22. Bh6 {[%clk 0:01:38.1]} 22...
Bh8 {[%clk 0:02:08.8]} 23. Ng5 {[%clk 0:01:38.4]} 23... Bf6 {[%clk 0:01:58.9]}
24. Qf4 {[%clk 0:01:33.6]} 24... Nxc2 {[%clk 0:01:54.7]} 25. Re4 {[%clk
0:01:19.7]} 25... Nd4 {[%clk 0:01:47.1]} 26. Nf3 {[%clk 0:01:09.9]} 26... Ne2+
{[%clk 0:01:44.9]} 27. Rxe2 {[%clk 0:01:10.2]} 27... Qxe2 {[%clk 0:01:44.2]} 28.
Re1 {[%clk 0:01:10.7]} 28... Qd3 {[%clk 0:01:40.8]} 29. Bg5 {[%clk 0:01:07.8]}
29... Qxd5 {[%clk 0:01:26.6]} 30. Re2 {[%clk 0:00:55.1]} 30... Ra8 {[%clk
0:01:20.5]} 31. h4 {[%clk 0:00:45.2]} 31... Qf5 {[%clk 0:01:06.6]} 32. Qg3
{[%clk 0:00:43.7]} 32... h5 {[%clk 0:00:55.3]} 33. Kh2 {[%clk 0:00:29.9]} 33...
Qg4 {[%clk 0:00:52.1]} 34. Re3 {[%clk 0:00:12.6]} 34... Qxg3+ {[%clk 0:00:48.5]}
35. Kxg3 {[%clk 0:00:13.5]} 35... Bxg5 {[%clk 0:00:48.2]} 36. Nxg5 {[%clk
0:00:12]} 36... Rab8 {[%clk 0:00:47.1]} 37. Ne4 {[%clk 0:00:12.3]} 37... Kg7
{[%clk 0:00:43.6]} 38. Kf4 {[%clk 0:00:12.6]} 38... Rb4 {[%clk 0:00:42.8]} 39.
Kf3 {[%clk 0:00:06.6]} 39... Reb8 {[%clk 0:00:41.9]} 40. Nd2 {[%clk 0:00:05.7]}
40... e6 {[%clk 0:00:40.8]} 41. Rd3 {[%clk 0:00:06.3]} 41... d5 {[%clk
0:00:40.7]} 42. Rc3 {[%clk 0:00:07]} 42... R8b5 {[%clk 0:00:38.7]} 43. g3 {[%clk
0:00:07.3]} 43... Kf6 {[%clk 0:00:37.7]} 44. Ke3 {[%clk 0:00:06.7]} 44... d4+
{[%clk 0:00:37.4]} 0-1

[Event "Late-Titled-Tuesday-Blitz-July-09-2024"]
[Site "Chess.com"]
[Date "2024.07.09"]
[Round "6"]
[White "AsaHoffmann"]
[Black "Mikhail_Golubev"]
[Result "0-1"]
[WhiteElo "2397"]
[BlackElo "2624"]
[TimeControl "180+1"]
[EndTime "15:04:57 PDT"]
[Termination "Mikhail_Golubev won on time"]

1. d4 {[%clk 0:00:53.3]} 1... Nf6 {[%clk 0:02:57.7]} 2. Bg5 {[%clk 0:00:50.5]}
2... Ne4 {[%clk 0:02:54.1]} 3. Bf4 {[%clk 0:00:49.9]} 3... c5 {[%clk 0:02:46.1]}
4. f3 {[%clk 0:00:48.6]} 4... Qa5+ {[%clk 0:02:44.9]} 5. c3 {[%clk 0:00:48.3]}
5... Nf6 {[%clk 0:02:43.3]} 6. d5 {[%clk 0:00:48.3]} 6... Qb6 {[%clk 0:02:43.2]}
7. e4 {[%clk 0:00:47.7]} 7... Qxb2 {[%clk 0:02:40.1]} 8. Nd2 {[%clk 0:00:47.6]}
8... Nh5 {[%clk 0:02:31.5]} 9. Be3 {[%clk 0:00:45.9]} 9... Qxc3 {[%clk
0:02:28.3]} 10. Kf2 {[%clk 0:00:43.5]} 10... Qf6 {[%clk 0:01:43.3]} 11. Bc4
{[%clk 0:00:41.7]} 11... g5 {[%clk 0:01:37]} 12. Ne2 {[%clk 0:00:41.3]} 12...
Bg7 {[%clk 0:01:35.1]} 13. Rb1 {[%clk 0:00:40.5]} 13... O-O {[%clk 0:01:26]} 14.
Bxc5 {[%clk 0:00:40.1]} 14... Nf4 {[%clk 0:01:08.4]} 15. Bd4 {[%clk 0:00:37.1]}
15... Qh6 {[%clk 0:01:08.3]} 16. Bxg7 {[%clk 0:00:31.3]} 16... Qxg7 {[%clk
0:01:08.4]} 17. g3 {[%clk 0:00:29.1]} 17... Nxe2 {[%clk 0:01:01.5]} 18. Qxe2
{[%clk 0:00:28.9]} 18... d6 {[%clk 0:01:02.1]} 19. h4 {[%clk 0:00:28.6]} 19...
g4 {[%clk 0:01:01.2]} 20. f4 {[%clk 0:00:27.1]} 20... Nd7 {[%clk 0:01:00.8]} 21.
h5 {[%clk 0:00:26.3]} 21... f5 {[%clk 0:00:51.9]} 22. h6 {[%clk 0:00:25.2]}
22... Qd4+ {[%clk 0:00:45.2]} 23. Kg2 {[%clk 0:00:25.1]} 23... Nf6 {[%clk
0:00:43.8]} 24. Rb3 {[%clk 0:00:19.5]} 24... fxe4 {[%clk 0:00:40.7]} 25. Rh4
{[%clk 0:00:18.5]} 25... Bf5 {[%clk 0:00:38.1]} 26. Bb5 {[%clk 0:00:16.7]} 26...
Rac8 {[%clk 0:00:33]} 27. Nf1 {[%clk 0:00:16.1]} 27... Nxd5 {[%clk 0:00:27.8]}
28. Ne3 {[%clk 0:00:13.8]} 28... Nxe3+ {[%clk 0:00:24.7]} 29. Rxe3 {[%clk
0:00:13.2]} 29... Rc5 {[%clk 0:00:23.7]} 30. Bd7 {[%clk 0:00:11.4]} 30... Bxd7
{[%clk 0:00:22.3]} 31. f5 {[%clk 0:00:10.9]} 31... Bxf5 {[%clk 0:00:20.4]} 32.
Rxg4+ {[%clk 0:00:09.6]} 32... Bxg4 {[%clk 0:00:20.1]} 33. Qxg4+ {[%clk
0:00:09.2]} 33... Kh8 {[%clk 0:00:20]} 34. Rxe4 {[%clk 0:00:09.2]} 34... Qb2+
{[%clk 0:00:17.5]} 35. Kh3 {[%clk 0:00:08.8]} 35... Rc1 {[%clk 0:00:17]} 0-1

[Event "Late-Titled-Tuesday-Blitz-July-09-2024"]
[Site "Chess.com"]
[Date "2024.07.09"]
[Round "6"]
[White "cthulhuuu"]
[Black "Marcin"]
[Result "0-1"]
[WhiteElo "2468"]
[BlackElo "2645"]
[TimeControl "180+1"]
[EndTime "15:04:58 PDT"]
[Termination "Marcin won by resignation"]

1. e4 {[%clk 0:03:00.1]} 1... e5 {[%clk 0:02:55.6]} 2. Nf3 {[%clk 0:03:00.2]}
2... Nc6 {[%clk 0:02:56.1]} 3. d3 {[%clk 0:03:00.4]} 3... Nf6 {[%clk 0:02:55.6]}
4. g3 {[%clk 0:03:00.6]} 4... Bc5 {[%clk 0:02:54.4]} 5. Bg2 {[%clk 0:03:00.8]}
5... O-O {[%clk 0:02:53]} 6. O-O {[%clk 0:03:00.9]} 6... d5 {[%clk 0:02:52.5]}
7. exd5 {[%clk 0:02:56.7]} 7... Nxd5 {[%clk 0:02:53.4]} 8. c3 {[%clk 0:02:56.4]}
8... h6 {[%clk 0:02:36.8]} 9. d4 {[%clk 0:02:44.3]} 9... exd4 {[%clk 0:02:32.4]}
10. Nxd4 {[%clk 0:02:44.4]} 10... Nxd4 {[%clk 0:02:31.9]} 11. cxd4 {[%clk
0:02:43.5]} 11... Be7 {[%clk 0:02:30]} 12. Nc3 {[%clk 0:02:43.6]} 12... Be6
{[%clk 0:02:30.3]} 13. Re1 {[%clk 0:02:40.3]} 13... c6 {[%clk 0:02:29.5]} 14.
Nxd5 {[%clk 0:02:23.5]} 14... Bxd5 {[%clk 0:02:24.4]} 15. Bxd5 {[%clk
0:02:23.2]} 15... cxd5 {[%clk 0:02:25]} 16. Qb3 {[%clk 0:02:20.9]} 16... Qd7
{[%clk 0:02:24]} 17. Bf4 {[%clk 0:02:19.9]} 17... Rac8 {[%clk 0:02:21.2]} 18.
Rac1 {[%clk 0:02:16.8]} 18... a6 {[%clk 0:02:01.8]} 19. Re5 {[%clk 0:02:06.1]}
19... Rxc1+ {[%clk 0:01:52.7]} 20. Bxc1 {[%clk 0:02:06.9]} 20... Rd8 {[%clk
0:01:48.6]} 21. Qd3 {[%clk 0:00:54.7]} 21... Bf6 {[%clk 0:01:45.2]} 22. Re2
{[%clk 0:00:54.8]} 22... Qa4 {[%clk 0:01:38.1]} 23. Be3 {[%clk 0:00:35.7]} 23...
Qxa2 {[%clk 0:01:37.7]} 24. Rc2 {[%clk 0:00:35.2]} 24... Qa5 {[%clk 0:01:27.2]}
25. Qf5 {[%clk 0:00:28.9]} 25... Qb6 {[%clk 0:01:18.3]} 26. Rc8 {[%clk
0:00:20.3]} 26... g6 {[%clk 0:01:02.8]} 27. Rxd8+ {[%clk 0:00:04.2]} 27... Qxd8
{[%clk 0:01:03.7]} 28. Qh3 {[%clk 0:00:03.9]} 28... h5 {[%clk 0:01:01.6]} 29. g4
{[%clk 0:00:04.3]} 29... Qd7 {[%clk 0:01:00.4]} 30. f3 {[%clk 0:00:02.1]} 30...
Qe6 {[%clk 0:00:56.4]} 31. Bf2 {[%clk 0:00:02.4]} 31... hxg4 {[%clk 0:00:55.2]}
32. fxg4 {[%clk 0:00:02.7]} 32... Qe2 {[%clk 0:00:53.9]} 33. Qg2 {[%clk
0:00:02.1]} 33... Qd1+ {[%clk 0:00:51.8]} 34. Qf1 {[%clk 0:00:02.5]} 34... Qxg4+
{[%clk 0:00:51.2]} 35. Kh1 {[%clk 0:00:02.6]} 35... Bxd4 {[%clk 0:00:45.3]} 36.
Bxd4 {[%clk 0:00:02.5]} 36... Qxd4 {[%clk 0:00:46.2]} 37. b4 {[%clk 0:00:02.7]}
37... Qe4+ {[%clk 0:00:45.1]} 38. Kg1 {[%clk 0:00:02.9]} 38... d4 {[%clk
0:00:45.6]} 39. b5 {[%clk 0:00:02.9]} 39... axb5 {[%clk 0:00:42.7]} 40. h4
{[%clk 0:00:02.5]} 40... Qg4+ {[%clk 0:00:40.1]} 41. Kf2 {[%clk 0:00:02.6]}
41... Qf4+ {[%clk 0:00:40.3]} 0-1

[Event "Late-Titled-Tuesday-Blitz-July-09-2024"]
[Site "Chess.com"]
[Date "2024.07.09"]
[Round "6"]
[White "evgchess5"]
[Black "bazar-wokzal"]
[Result "1-0"]
[WhiteElo "2867"]
[BlackElo "2644"]
[TimeControl "180+1"]
[EndTime "15:04:59 PDT"]
[Termination "evgchess5 won on time"]

1. Nf3 {[%clk 0:02:58.9]} 1... c5 {[%clk 0:02:59.4]} 2. e4 {[%clk 0:02:57.7]}
2... d6 {[%clk 0:02:59.1]} 3. Bb5+ {[%clk 0:02:57.4]} 3... Nd7 {[%clk
0:02:58.7]} 4. d4 {[%clk 0:02:57.2]} 4... cxd4 {[%clk 0:02:58]} 5. Qxd4 {[%clk
0:02:57.3]} 5... a6 {[%clk 0:02:57.8]} 6. Be2 {[%clk 0:02:57.8]} 6... e5 {[%clk
0:02:57.3]} 7. Qe3 {[%clk 0:02:57.9]} 7... Ngf6 {[%clk 0:02:53.7]} 8. O-O {[%clk
0:02:57.7]} 8... Be7 {[%clk 0:02:52.7]} 9. c4 {[%clk 0:02:57.5]} 9... O-O {[%clk
0:02:51.4]} 10. Nc3 {[%clk 0:02:57.9]} 10... Qc7 {[%clk 0:02:42.7]} 11. b3
{[%clk 0:02:57.2]} 11... b6 {[%clk 0:02:35.7]} 12. Bb2 {[%clk 0:02:56.9]} 12...
Bb7 {[%clk 0:02:35.7]} 13. Rac1 {[%clk 0:02:57.3]} 13... Rfe8 {[%clk 0:02:27.9]}
14. Rfd1 {[%clk 0:02:49.3]} 14... Rac8 {[%clk 0:02:24]} 15. Nd2 {[%clk
0:02:40.2]} 15... Nc5 {[%clk 0:02:16.4]} 16. b4 {[%clk 0:02:29.6]} 16... Ncd7
{[%clk 0:02:06.4]} 17. Nd5 {[%clk 0:02:06.1]} 17... Nxd5 {[%clk 0:02:03.3]} 18.
cxd5 {[%clk 0:02:06.4]} 18... Qb8 {[%clk 0:02:02.7]} 19. Bg4 {[%clk 0:02:04.1]}
19... Red8 {[%clk 0:01:45]} 20. Nc4 {[%clk 0:01:31.9]} 20... b5 {[%clk
0:01:08.4]} 21. Na5 {[%clk 0:01:31.4]} 21... Rxc1 {[%clk 0:01:03.3]} 22. Rxc1
{[%clk 0:01:29.3]} 22... Nf6 {[%clk 0:00:55.4]} 23. Bh3 {[%clk 0:01:17.2]} 23...
Ba8 {[%clk 0:00:34.2]} 24. f3 {[%clk 0:01:03.6]} 24... g6 {[%clk 0:00:26.8]} 25.
Nc6 {[%clk 0:00:57.5]} 25... Bxc6 {[%clk 0:00:26.3]} 26. Rxc6 {[%clk 0:00:58.2]}
26... Nh5 {[%clk 0:00:19.1]} 27. g3 {[%clk 0:00:55.4]} 27... h6 {[%clk
0:00:16.2]} 28. Qb6 {[%clk 0:00:43.1]} 28... Qxb6+ {[%clk 0:00:10.3]} 29. Rxb6
{[%clk 0:00:43.1]} 29... Bg5 {[%clk 0:00:10.5]} 30. Rxa6 {[%clk 0:00:37.9]}
30... Be3+ {[%clk 0:00:03.3]} 31. Kf1 {[%clk 0:00:38]} 31... Bd4 {[%clk
0:00:03.6]} 32. Bxd4 {[%clk 0:00:32.4]} 32... exd4 {[%clk 0:00:04]} 33. Ke2
{[%clk 0:00:33.1]} 33... f5 {[%clk 0:00:02.5]} 34. exf5 {[%clk 0:00:30.1]} 34...
Re8+ {[%clk 0:00:02.3]} 35. Kd3 {[%clk 0:00:29.3]} 35... Re3+ {[%clk 0:00:02.3]}
36. Kxd4 {[%clk 0:00:29.5]} 36... Rxf3 {[%clk 0:00:02.4]} 37. fxg6 {[%clk
0:00:28.9]} 1-0

[Event "Late-Titled-Tuesday-Blitz-July-09-2024"]
[Site "Chess.com"]
[Date "2024.07.09"]
[Round "6"]
[White "Nekoo04"]
[Black "HPanesso"]
[Result "1-0"]
[WhiteElo "2402"]
[BlackElo "2525"]
[TimeControl "180+1"]
[EndTime "15:04:59 PDT"]
[Termination "Nekoo04 won on time"]

1. Nf3 {[%clk 0:03:00.9]} 1... d5 {[%clk 0:02:57.8]} 2. e3 {[%clk 0:02:56.5]}
2... Nf6 {[%clk 0:02:54.5]} 3. c4 {[%clk 0:02:56.9]} 3... e6 {[%clk 0:02:53]} 4.
b3 {[%clk 0:02:56.7]} 4... Be7 {[%clk 0:02:51.8]} 5. Bb2 {[%clk 0:02:57.1]} 5...
O-O {[%clk 0:02:51.5]} 6. Nc3 {[%clk 0:02:57.2]} 6... c5 {[%clk 0:02:50.7]} 7.
cxd5 {[%clk 0:02:56.9]} 7... exd5 {[%clk 0:02:50.4]} 8. d4 {[%clk 0:02:56.8]}
8... Nc6 {[%clk 0:02:43.9]} 9. Be2 {[%clk 0:02:56.2]} 9... Ne4 {[%clk
0:02:38.9]} 10. O-O {[%clk 0:02:52.3]} 10... Bf6 {[%clk 0:02:36.7]} 11. Rc1
{[%clk 0:02:51]} 11... cxd4 {[%clk 0:02:30.9]} 12. Nxd4 {[%clk 0:02:50.9]} 12...
Nxd4 {[%clk 0:02:27.8]} 13. exd4 {[%clk 0:02:50.6]} 13... Nxc3 {[%clk
0:02:21.3]} 14. Bxc3 {[%clk 0:02:50.5]} 14... Be6 {[%clk 0:02:21.2]} 15. Bf3
{[%clk 0:02:47.8]} 15... Qb6 {[%clk 0:02:18.1]} 16. Qd2 {[%clk 0:02:44.4]} 16...
Rfc8 {[%clk 0:02:12.4]} 17. Rfe1 {[%clk 0:02:36.5]} 17... h6 {[%clk 0:02:10.9]}
18. Qb2 {[%clk 0:02:23.6]} 18... Rc6 {[%clk 0:02:04.5]} 19. a4 {[%clk
0:02:12.8]} 19... Rac8 {[%clk 0:01:57.6]} 20. a5 {[%clk 0:02:12.2]} 20... Qc7
{[%clk 0:01:56.7]} 21. Bd2 {[%clk 0:02:10.8]} 21... Rc2 {[%clk 0:01:44.6]} 22.
Rxc2 {[%clk 0:01:55.7]} 22... Qxc2 {[%clk 0:01:45.5]} 23. Qxc2 {[%clk
0:01:56.6]} 23... Rxc2 {[%clk 0:01:46.4]} 24. Be3 {[%clk 0:01:57.5]} 24... Rb2
{[%clk 0:01:32.6]} 25. Bd1 {[%clk 0:01:56.4]} 25... Rb1 {[%clk 0:01:29.3]} 26.
Kf1 {[%clk 0:01:55.8]} 26... Bf5 {[%clk 0:01:26.1]} 27. Ke2 {[%clk 0:01:55.6]}
27... Rb2+ {[%clk 0:01:21.2]} 28. Kf3 {[%clk 0:01:52]} 28... g5 {[%clk
0:01:06.7]} 29. Re2 {[%clk 0:01:38.7]} 29... Be4+ {[%clk 0:00:47.5]} 30. Kg3
{[%clk 0:01:38.1]} 30... Rb1 {[%clk 0:00:38.4]} 31. Rd2 {[%clk 0:01:35.9]} 31...
Be7 {[%clk 0:00:25.7]} 32. Bc2 {[%clk 0:01:17.5]} 32... Bd6+ {[%clk 0:00:21.7]}
33. Kg4 {[%clk 0:01:16.2]} 33... Bxc2 {[%clk 0:00:17.5]} 34. Rxc2 {[%clk
0:01:17.1]} 34... Rxb3 {[%clk 0:00:17.6]} 35. h4 {[%clk 0:01:13.5]} 35... gxh4
{[%clk 0:00:16.1]} 36. Kh5 {[%clk 0:01:13.7]} 36... Kh7 {[%clk 0:00:10.3]} 37.
Rc8 {[%clk 0:01:10.4]} 37... Ra3 {[%clk 0:00:08.4]} 38. Bxh6 {[%clk 0:01:06.6]}
38... h3 {[%clk 0:00:08.6]} 39. Bg5 {[%clk 0:00:40.7]} 39... f6 {[%clk 0:00:07]}
40. Bxf6 {[%clk 0:00:41.6]} 40... Bf8 {[%clk 0:00:01.2]} 41. Rxf8 {[%clk
0:00:41.1]} 1-0